bitfinex/quotes_ETHUSD_20251110
["timestamp","ask_amount","ask_price","bid_price","bid_amount"]
[1762743794249,0.1368,3639.3,3638.8,2.74815873]
[1762743794582,0.1368,3639.3,3638.9,0.4756]
[1762743794950,0.1368,3639.3,3639.2,2.74785667]
[1762743795151,0.1368,3639.3,3639.2,3.21745667]
[1762743795386,2.74695835,3640.4,3639.2,1.36026423]
[1762743795595,0.1368,3640.1,3639.4,2.74770566]
[1762743795883,2.74624242,3641.4,3639.4,2.74770566]
[1762743795884,0.1368,3640.5,3639.9,0.1368]
[1762743796083,2.74690645,3640.5,3639.7,2.74741914]
[1762743796286,0.1368,3640.2,3639.8,2.74739254]
[1762743796486,0.1368,3640.2,3639.9,2.74732456]
[1762743796696,0.2327,3640.0,3639.6,0.1368]
[1762743796946,0.1324,3639.9,3639.1,0.6584]
[1762743797212,0.1368,3639.8,3639.5,2.74758492]
[1762743797415,0.1368,3639.8,3639.2,0.1368]
[1762743797894,0.1368,3639.8,3639.2,2.88461697]
[1762743798100,0.1368,3639.8,3639.3,2.74776645]
[1762743798326,0.1368,3639.8,3639.2,0.1368]
[1762743798531,2.88426829,3639.8,3639.2,0.1368]
[1762743798700,0.1368,3639.8,3639.2,2.884595]
[1762743799027,0.1368,3639.8,3639.3,2.74772981]
[1762743799185,0.1368,3639.8,3639.4,2.74765678]
[1762743799383,0.1368,3639.8,3639.3,2.74775719]
[1762743799812,0.1368,3639.8,3639.2,0.1368]
[1762743800021,0.2327,3639.3,3638.9,0.001]
[1762743800321,0.1368,3639.4,3639.2,2.74779089]
[1762743800642,0.1368,3639.4,3639.0,2.74800769]
[1762743800818,2.7470811,3640.3,3639.6,2.74753031]
[1762743801117,0.1368,3639.7,3639.4,2.74767856]
[1762743801480,0.1368,3639.7,3639.3,0.1828]
[1762743801680,0.1368,3639.7,3639.3,3.40615674]
[1762743801884,0.1368,3639.7,3639.6,2.74755467]
[1762743802081,0.1368,3640.1,3639.7,2.74742786]
[1762743802319,0.1368,3640.1,3639.7,2.74746973]
[1762743802682,0.1368,3640.1,3639.5,2.74763016]
[1762743802884,0.1368,3640.1,3639.7,2.74741419]
[1762743803105,0.1368,3640.1,3639.5,0.4756]
[1762743803307,0.1368,3640.1,3639.6,2.74755467]
[1762743803536,0.367,3639.7,3638.9,0.73554161]
[1762743803712,0.25608135,3639.6,3638.9,2.7490811]
[1762743803889,0.0521,3639.7,3638.9,3.2246699]
[1762743804287,0.0521,3639.7,3639.0,2.74799875]
[1762743804505,0.25618344,3639.6,3638.9,0.4766]
[1762743805237,2.74761195,3639.6,3638.9,3.22462877]
[1762743805443,3.00395033,3639.5,3638.9,0.4766]
[1762743805648,0.0521,3639.7,3638.9,0.001]
[1762743805812,2.74773279,3639.4,3638.9,0.001]
[1762743806019,2.74773023,3639.4,3638.9,0.001]
[1762743806218,2.74779751,3639.3,3638.9,0.001]
[1762743806636,0.58615018,3639.4,3638.9,0.001]
[1762743806637,2.74786436,3639.2,3638.9,0.001]
[1762743807411,0.2336,3639.0,3638.9,0.001]
[1762743807821,2.74783543,3639.3,3638.9,0.001]
[1762743808110,0.0521,3639.7,3638.9,0.001]
[1762743808111,0.0521,3639.7,3639.2,0.6731]
[1762743808330,0.25648185,3639.6,3639.5,2.74763016]
[1762743808531,0.0803,3640.3,3639.8,2.74734267]
[1762743808709,0.25645311,3640.2,3639.9,2.74727005]
[1762743808920,0.25645311,3640.1,3639.5,0.4809]
[1762743809246,0.0803,3640.3,3639.5,0.4809]
[1762743809419,0.002,3640.4,3639.5,0.4809]
[1762743809420,0.25650353,3640.2,3639.6,0.15121814]
[1762743809622,0.002,3640.4,3640.2,2.74709542]
[1762743809833,0.25649349,3640.3,3640.1,3.22805461]
[1762743810008,0.25649349,3640.2,3640.1,0.4809]
[1762743810208,0.25649349,3640.2,3640.1,3.22807727]
[1762743810408,0.25649349,3640.2,3639.6,0.15121814]
[1762743810604,0.002,3640.4,3639.2,1.42574161]
[1762743810605,0.25649349,3640.1,3639.2,1.42574161]
[1762743810836,0.25649349,3640.0,3639.5,2.74762974]
[1762743811035,0.25649349,3639.9,3639.5,2.74762974]
[1762743811242,2.747224,3640.1,3639.5,2.74762974]
[1762743811442,0.25659708,3640.0,3639.5,2.74762974]
[1762743811614,0.25659708,3639.9,3639.5,2.74762974]
[1762743811815,0.25659708,3639.9,3639.3,1.259712]
[1762743811816,0.0521,3639.9,3639.3,1.259712]
[1762743812036,0.0521,3639.9,3639.5,2.74761224]
[1762743812235,2.74900208,3640.4,3639.7,2.74746708]
[1762743812565,0.25659776,3640.3,3639.7,2.74746708]
[1762743812763,0.25659776,3640.2,3639.4,0.499]
[1762743812934,0.25659786,3640.1,3639.7,2.74744504]
[1762743813262,2.74897475,3640.4,3639.7,2.74744504]
[1762743813263,0.002,3640.4,3639.7,2.74741413]
[1762743813462,2.74901285,3640.4,3639.7,2.74741413]
[1762743813682,0.1368,3640.1,3639.4,1.27713291]
[1762743813835,0.1368,3640.1,3639.4,0.6358]
[1762743814034,0.25658792,3640.0,3639.6,2.74754915]
[1762743814379,0.25658792,3639.9,3639.5,2.74756226]
[1762743814597,0.1368,3640.1,3639.4,0.6358]
[1762743814878,0.2565954,3640.0,3639.4,2.74767074]
[1762743815092,0.1368,3639.7,3639.4,2.74767074]
[1762743815388,0.1368,3639.7,3639.5,0.0274763]
[1762743815529,0.1368,3640.2,3639.6,1.1167]
[1762743815731,0.25661347,3640.1,3639.6,0.94080098]
[1762743816052,0.39341347,3640.0,3639.7,2.74741306]
[1762743816248,0.25661347,3639.9,3639.6,3.22842725]
[1762743816565,0.25663958,3639.8,3639.6,3.22842725]
[1762743816766,0.1368,3640.0,3639.6,0.4809]
[1762743816971,0.25663065,3639.9,3639.8,2.7474037]
[1762743817455,0.25663065,3639.9,3639.8,3.2283037]
[1762743817643,0.25663065,3639.9,3639.8,3.7273037]
[1762743817848,0.25663065,3639.9,3639.4,0.1368]
[1762743818046,0.25664598,3639.8,3639.6,2.74754592]
[1762743818271,0.1368,3640.0,3639.8,2.74735071]
[1762743818567,0.1368,3640.0,3639.9,3.22822822]
[1762743818779,0.3934573,3640.0,3639.9,3.22822822]
[1762743818986,0.1368,3640.0,3639.9,3.22822822]
[1762743819339,0.1368,3640.0,3639.9,3.72722822]
[1762743819553,0.1388,3640.4,3639.9,1.70356596]
[1762743819759,0.25673619,3640.3,3639.8,0.1368]
[1762743819953,0.25673619,3640.3,3639.5,2.74761939]
[1762743819954,0.2327,3639.9,3639.5,2.74761939]
[1762743820163,0.2327,3639.9,3639.4,3.61904349]
[1762743820368,0.25688634,3639.8,3639.7,2.74747918]
[1762743820590,0.1368,3640.0,3639.9,2.74732822]
[1762743820884,0.1368,3640.0,3639.5,3.48211047]
[1762743820885,0.70856669,3640.0,3639.5,3.48211047]
[1762743821090,0.25686669,3639.9,3639.6,2.74754284]
[1762743821290,0.25686669,3639.8,3639.6,2.74754284]
[1762743821487,0.25686669,3639.7,3639.6,2.74754284]
[1762743821793,0.4517,3640.0,3639.7,2.74745011]
[1762743822100,0.25705109,3639.9,3639.8,2.7474037]
[1762743822514,0.25705109,3639.9,3639.8,3.75477773]
[1762743822665,0.25705109,3639.9,3639.8,4.45099092]
[1762743822866,1.96133901,3642.9,3640.0,0.4809]
[1762743823229,0.1368,3642.3,3641.5,0.405504]
[1762743823409,0.1368,3642.3,3641.5,0.73479151]
[1762743823609,0.1368,3642.3,3642.0,2.7456896]
[1762743823910,0.1368,3642.3,3641.6,0.1368]
[1762743824187,2.74523972,3642.7,3641.8,2.74583428]
[1762743824188,0.1368,3642.0,3641.8,2.74583428]
[1762743824590,0.1368,3642.0,3641.7,2.74596696]
[1762743824795,0.1368,3642.0,3641.7,2.74597028]
[1762743824959,0.1368,3642.0,3641.8,2.74588289]
[1762743825159,0.1368,3642.0,3641.7,3.24490809]
[1762743825569,0.1368,3642.0,3641.7,2.74595566]
[1762743825894,0.1368,3642.0,3641.4,0.1368]
[1762743826074,0.1368,3642.0,3641.6,2.74599157]
[1762743826473,0.1368,3642.0,3641.9,3.22671948]
[1762743826776,0.1368,3642.0,3641.9,0.4809]
[1762743827291,0.1368,3642.0,3641.9,3.22671948]
[1762743827897,0.1368,3642.0,3641.4,0.1368]
[1762743828100,0.1368,3642.0,3641.7,2.74590279]
[1762743828410,0.1368,3642.0,3641.8,2.74587907]
[1762743828577,0.1368,3642.0,3641.7,2.7459587]
[1762743828782,0.1368,3642.0,3641.6,2.74599196]
[1762743829365,0.1368,3642.0,3641.5,2.74606238]
[1762743829581,0.1368,3642.0,3641.7,2.74596897]
[1762743829908,0.1368,3642.0,3641.2,2.74632633]
[1762743829909,0.4043,3641.5,3641.2,2.74632633]
[1762743830080,0.4043,3641.5,3640.9,0.1368]
[1762743830266,0.1368,3641.5,3641.0,2.74649821]
[1762743830914,0.1368,3641.5,3641.3,2.74624673]
[1762743831217,0.1821,3641.9,3641.5,2.74607129]
[1762743831218,0.1368,3641.6,3641.5,2.74607129]
[1762743832439,0.1368,3641.6,3641.5,3.7536325]
[1762743832746,3.20870359,3642.6,3641.9,2.74578984]
[1762743832942,3.20870359,3642.6,3641.5,0.9801]
[1762743832943,0.1368,3641.9,3641.6,2.74597261]
[1762743833121,0.1368,3641.9,3641.7,2.7459581]
[1762743833841,0.1368,3641.9,3641.6,2.74603876]
[1762743834010,0.1368,3641.9,3641.6,2.7459951]
[1762743834344,0.4599,3641.7,3640.7,0.6892]
[1762743834556,0.455,3641.9,3641.3,2.74625489]
[1762743834759,0.32007605,3641.8,3640.8,0.48216649]
[1762743834959,0.1368,3641.3,3641.2,2.74634735]
[1762743835138,0.1368,3641.6,3641.5,2.74606726]
[1762743835578,0.1368,3641.6,3641.5,3.21006726]
[1762743836955,0.1368,3641.6,3641.5,3.2101211]
[1762743838871,0.5942,3641.6,3641.0,0.1368]
[1762743839074,0.5942,3641.6,3641.5,2.7461211]
[1762743839375,0.1368,3641.6,3641.4,2.7461868]
[1762743839882,0.4555,3641.5,3641.0,0.1368]
[1762743840177,0.4555,3641.5,3641.1,2.74639915]
[1762743840178,0.1368,3641.4,3641.1,2.74639915]
[1762743840340,0.1368,3641.4,3641.3,2.74627193]
[1762743840534,0.1719,3641.9,3641.7,2.74597028]
[1762743840535,0.1368,3641.8,3641.7,2.74597028]
[1762743840975,0.1368,3641.8,3641.7,3.66467028]
[1762743841181,0.002,3641.9,3641.8,3.15139888]
[1762743841476,0.002,3641.9,3641.8,4.73863067]
[1762743841768,0.002,3641.9,3641.8,4.71117173]
[1762743842287,0.1285,3644.3,3641.8,4.80191012]
[1762743842569,0.1885,3643.9,3642.4,0.7287085]
[1762743842734,0.1885,3643.9,3643.1,2.74485228]
[1762743842935,0.6796,3643.9,3642.8,2.745111]
[1762743843286,0.6796,3643.9,3642.6,2.74529182]
[1762743843479,3.23550121,3643.8,3642.5,0.638]
[1762743843636,0.39151012,3643.7,3642.5,0.638]
[1762743843975,2.7446686,3643.5,3642.5,0.638]
[1762743844273,0.4911,3643.7,3642.6,2.74526113]
[1762743844466,3.23563285,3643.7,3642.6,2.74526113]
[1762743844789,0.4911,3643.6,3642.8,2.74508964]
[1762743844938,3.23564445,3643.6,3642.8,2.74508964]
[1762743845275,0.59800361,3643.5,3642.8,2.74511679]
[1762743845472,3.34264221,3643.5,3642.7,2.74515949]
[1762743845881,3.34264221,3643.5,3642.8,2.74513621]
[1762743846088,0.59800361,3643.5,3642.5,0.1833]
[1762743846302,0.59800361,3643.5,3643.1,2.744843]
[1762743846454,2.87252704,3644.3,3643.4,0.6473]
[1762743846648,0.1285,3644.3,3643.8,2.74434328]
[1762743846847,0.1285,3644.3,3643.4,0.6473]
[1762743846848,0.1958,3645.0,3643.5,0.4547]
[1762743847080,0.1958,3644.9,3643.7,1.259712]
[1762743847281,0.4911,3645.5,3643.8,0.405504]
[1762743847480,0.4911,3645.9,3643.8,0.4547]
[1762743847799,0.46220273,3645.8,3643.8,0.4547]
[1762743848005,2.74324543,3645.4,3644.6,2.74377709]
[1762743848201,0.4911,3645.7,3643.8,0.4547]
[1762743848504,0.4911,3645.7,3644.4,2.74393088]
[1762743848652,2.74328028,3645.3,3644.5,2.74386048]
[1762743848852,0.32339379,3645.6,3644.2,2.74408649]
[1762743849199,1.259712,3646.1,3644.3,2.74397985]
[1762743849200,2.74318318,3645.4,3644.3,2.74397985]
[1762743849363,2.74339879,3645.2,3644.4,2.74393407]
[1762743849566,3.29207432,3645.1,3644.4,2.74393407]
[1762743849869,0.5486582,3645.1,3644.5,0.4547]
[1762743850076,2.74308092,3645.6,3644.8,2.74357302]
[1762743850271,2.74280705,3645.9,3644.5,0.4547]
[1762743850272,2.7428155,3645.9,3644.5,3.19852653]
[1762743850471,0.4911,3646.2,3645.0,2.74347552]
[1762743850670,0.34293373,3646.1,3644.8,2.74356408]
[1762743850857,0.4911,3646.2,3645.2,2.7432698]
[1762743851061,2.74272035,3646.1,3645.2,2.7432698]
[1762743851259,0.1368,3645.5,3645.3,0.1833]
[1762743851691,2.74258131,3646.2,3645.0,3.19815995]
[1762743851888,2.74258131,3646.2,3644.0,0.7287085]
[1762743851889,2.74346258,3645.1,3644.3,2.74400949]
[1762743852051,0.1285,3645.8,3644.4,0.48213935]
[1762743852252,0.1285,3645.8,3645.1,2.74339701]
[1762743852450,0.002,3645.1,3645.0,0.464]
[1762743852771,0.002,3645.1,3645.0,3.20748422]
[1762743852964,0.002,3645.1,3645.0,3.66218422]
[1762743854658,0.002,3645.1,3645.0,3.68961906]
[1762743854902,0.002,3645.1,3645.0,4.29502999]
[1762743855061,0.002,3645.1,3645.0,4.26759515]
[1762743855398,0.002,3645.1,3645.0,5.96024599]
[1762743855570,0.002,3645.1,3645.0,5.93281115]
[1762743856197,0.002,3645.1,3645.0,5.52730715]
[1762743856394,0.002,3645.1,3645.0,4.92189622]
[1762743856805,0.002,3645.1,3645.0,5.32740022]
[1762743860013,0.002,3645.1,3645.0,4.92189622]
[1762743860523,0.002,3645.1,3644.6,0.1833]
[1762743860722,0.002,3645.1,3644.1,0.638]
[1762743860935,0.002,3645.1,3644.6,0.4547]
[1762743861132,0.002,3645.1,3644.7,2.74370026]
[1762743861424,0.002,3645.1,3644.7,0.4547]
[1762743861596,0.002,3645.1,3645.0,3.20748422]
[1762743861798,0.002,3645.1,3645.0,3.68961906]
[1762743862029,0.002,3645.1,3645.0,4.22856787]
[1762743862419,0.002,3645.1,3645.0,4.20113303]
[1762743862623,0.002,3645.1,3645.0,3.79898422]
[1762743863400,0.002,3645.1,3645.0,4.60665216]
[1762743863787,0.002,3645.1,3645.0,4.57921732]
[1762743864413,0.002,3645.1,3645.0,1.396512]
[1762743864614,0.002,3645.1,3644.9,2.88034414]
[1762743864826,0.002,3645.1,3645.0,2.74348422]
[1762743865129,0.002,3645.1,3644.9,2.88034581]
[1762743865338,0.002,3645.1,3644.9,0.1368]
[1762743865634,0.002,3645.1,3645.0,2.74348422]
[1762743865835,0.002,3645.1,3644.9,0.1368]
[1762743866434,0.002,3645.1,3644.9,2.88030683]
[1762743866648,0.002,3645.1,3644.9,2.88031162]
[1762743866838,0.002,3645.1,3645.0,3.72951906]
[1762743867142,0.002,3645.1,3645.0,3.83888422]
[1762743867303,0.002,3645.1,3645.0,5.53153506]
[1762743867505,0.002,3645.1,3645.0,5.50410022]
[1762743868540,0.002,3645.1,3645.0,5.86395046]
[1762743868722,0.002,3645.1,3645.0,6.53489072]
[1762743869304,0.002,3645.1,3645.0,7.26359922]
[1762743870834,0.002,3645.1,3645.0,7.26121586]
[1762743871036,0.002,3645.1,3645.0,7.26119567]
[1762743871340,0.08933859,3646.8,3646.7,2.74220528]
[1762743871545,2.74056167,3648.9,3646.7,2.74220528]
[1762743871546,0.0918,3648.9,3646.8,0.405504]
[1762743871731,0.0918,3648.9,3647.6,0.405504]
[1762743871905,0.0918,3648.9,3647.9,1.259712]
[1762743872105,0.0918,3648.9,3647.7,1.95565152]
[1762743872413,0.0918,3648.9,3647.7,0.69593952]
[1762743872613,0.0918,3648.9,3648.2,2.74106286]
[1762743872614,0.5558,3648.9,3648.2,2.74106286]
[1762743872817,0.5558,3648.9,3647.9,2.74124593]
[1762743873040,2.74075574,3648.7,3647.7,0.1827]
[1762743873239,0.60371194,3648.6,3647.7,2.74139649]
[1762743873428,1.06771194,3648.6,3647.9,2.7412326]
[1762743873628,0.464,3648.6,3647.8,2.74135774]
[1762743873827,0.464,3648.6,3648.0,2.74120355]
[1762743874141,0.464,3648.6,3647.8,2.74132408]
[1762743874327,0.464,3648.6,3647.5,0.4975]
[1762743874638,0.464,3648.6,3647.1,1.665216]
[1762743874813,2.7408524,3648.5,3647.5,2.74156906]
[1762743875015,0.464,3648.4,3647.2,2.74182932]
[1762743875216,0.464,3648.4,3647.1,0.405504]
[1762743875406,3.20492757,3648.4,3647.3,1.259712]
[1762743875740,3.20492757,3648.4,3646.9,4.00169851]
[1762743875741,0.32049276,3648.3,3646.7,2.74219264]
[1762743876004,0.25456446,3648.2,3646.6,0.1827]
[1762743876118,0.25455991,3648.2,3646.3,0.90820019]
[1762743876319,2.74154165,3647.6,3646.8,1.259712]
[1762743876649,2.741679,3647.4,3646.4,2.74242456]
[1762743876949,2.74181105,3647.3,3646.4,2.74241434]
[1762743877114,0.464,3647.4,3646.4,2.74241434]
[1762743877315,0.80363607,3647.4,3646.3,1.259712]
[1762743877539,2.74189651,3647.2,3646.4,2.74243039]
[1762743877843,3.2057664,3647.3,3646.0,0.4975]
[1762743878046,0.25486223,3647.2,3646.0,3.24017347]
[1762743878249,0.464,3647.3,3646.1,0.405504]
[1762743878550,0.1909,3647.5,3646.4,1.259712]
[1762743878712,0.1909,3647.5,3646.6,2.74227746]
[1762743878919,0.464,3647.8,3646.6,2.74227746]
[1762743878920,0.464,3647.8,3647.3,2.74173969]
[1762743879550,0.1909,3647.9,3646.7,0.44041383]
[1762743879846,0.1909,3647.9,3646.3,0.72550019]
[1762743879847,0.1909,3647.9,3647.3,2.74173569]
[1762743880049,0.1909,3647.9,3647.0,0.4975]
[1762743880212,0.464,3648.3,3647.8,2.74131567]
[1762743880418,0.464,3648.7,3648.0,2.74121372]
[1762743880617,0.0918,3648.9,3647.8,2.74134967]
[1762743880855,0.464,3648.6,3647.3,0.4975]
[1762743881058,2.74090589,3648.5,3647.8,2.74137479]
[1762743881271,0.32049059,3648.4,3647.8,2.74137479]
[1762743881448,0.45729059,3648.4,3647.8,2.74137546]
[1762743881649,0.1368,3648.4,3647.8,2.74137546]
[1762743881950,0.4651,3647.9,3647.7,0.1368]
[1762743882267,0.1368,3647.7,3647.1,0.1368]
[1762743882723,0.2715,3647.2,3647.1,0.1368]
[1762743882929,0.2715,3647.2,3646.4,1.396512]
[1762743883152,0.2715,3647.2,3646.2,0.72550019]
[1762743883153,0.2715,3647.2,3646.7,2.74218874]
[1762743883468,2.74138541,3647.8,3646.4,1.98521219]
[1762743883686,2.74145468,3647.7,3647.0,2.74192417]
[1762743884060,0.2742,3647.1,3646.5,0.56273639]
[1762743884387,0.2742,3647.1,3646.8,2.74208186]
[1762743884590,0.1936,3646.9,3646.0,0.72550019]
[1762743884790,0.1936,3646.9,3645.5,1.45741701]
[1762743884791,0.1936,3646.9,3645.6,0.4975]
[1762743885010,3.39966359,3646.9,3645.9,2.74275071]
[1762743885303,0.6576,3646.9,3645.9,1.259712]
[1762743885453,3.3997099,3646.9,3646.0,2.74266134]
[1762743885656,0.464,3646.8,3645.6,0.72550019]
[1762743885966,2.74225518,3646.7,3645.5,0.72550019]
[1762743886174,0.464,3646.8,3645.5,0.72550019]
[1762743886373,0.464,3646.7,3645.5,0.72550019]
[1762743886592,0.464,3646.7,3645.3,0.72550019]
[1762743886794,2.74260226,3646.2,3645.1,0.1827]
[1762743887096,2.74260226,3646.2,3645.5,2.74308637]
[1762743887273,0.464,3646.2,3645.1,0.588204]
[1762743887476,0.464,3646.1,3644.9,0.90820019]
[1762743887673,0.464,3646.1,3645.0,2.74345978]
[1762743887674,2.74295506,3645.8,3645.0,2.74345978]
[1762743887863,0.487,3646.5,3645.0,0.62126393]
[1762743888062,0.487,3646.8,3645.9,3.21320542]
[1762743888263,0.487,3646.8,3646.2,2.74256571]
[1762743888562,0.487,3646.8,3645.9,0.4704]
[1762743888766,0.487,3646.8,3646.0,2.74267329]
[1762743888767,3.22915398,3646.8,3646.0,2.74267329]
[1762743888969,2.74222616,3646.7,3645.8,2.74288222]
[1762743889320,2.74248488,3646.4,3645.7,2.74295301]
[1762743889526,2.74259525,3646.2,3645.2,4.19873887]
[1762743889807,0.487,3646.6,3645.2,0.1957]
[1762743890097,0.487,3646.6,3645.1,1.666216]
[1762743890098,2.74296412,3645.7,3645.1,0.001]
[1762743890319,2.74304046,3645.6,3645.2,3.60299998]
[1762743890474,0.4979,3645.2,3645.1,0.001]
[1762743890664,0.6923,3645.2,3645.1,0.001]
[1762743891088,3.43563369,3645.2,3645.1,0.001]
[1762743893908,3.69071759,3645.2,3645.1,0.001]
[1762743894109,4.37953809,3645.2,3645.1,0.001]
[1762743895433,2.74431241,3643.9,3643.1,0.72550019]
[1762743895645,2.74383995,3644.6,3643.2,0.4678]
[1762743895821,2.74350426,3645.0,3643.9,2.74425794]
[1762743896006,2.74350426,3645.0,3643.6,2.74453256]
[1762743896007,0.25481811,3644.9,3643.6,2.74453256]
[1762743896205,0.25481811,3644.9,3643.4,2.74467145]
[1762743896206,0.76275043,3644.9,3643.7,0.5489204]
[1762743896521,2.74418075,3644.1,3643.0,0.1827]
[1762743896843,0.4884,3644.8,3643.3,2.74470865]
[1762743897010,3.23208321,3644.8,3643.0,0.6505]
[1762743897333,2.74392073,3644.5,3643.7,2.7444394]
[1762743897547,2.74392073,3644.5,3643.1,0.34444155]
[1762743897548,2.74380924,3644.6,3643.8,2.77182188]
[1762743897713,0.4884,3644.7,3643.3,2.74473205]
[1762743897905,3.23216454,3644.7,3643.9,2.74428809]
[1762743898231,2.74378532,3644.6,3643.4,0.4678]
[1762743898536,2.74401119,3644.3,3643.5,0.3212499]
[1762743898740,2.74396144,3644.4,3643.6,2.74453114]
[1762743898916,2.74401992,3644.3,3643.6,2.74453114]
[1762743899117,2.74401992,3644.3,3643.4,3.2124856]
[1762743899118,0.4884,3644.5,3643.4,3.2124856]
[1762743899322,2.74404051,3644.3,3643.4,3.53373416]
[1762743899541,2.74404051,3644.3,3643.6,2.74448646]
[1762743900349,2.74418645,3644.1,3643.4,2.74468724]
[1762743900647,0.4884,3644.5,3643.6,2.74448385]
[1762743901009,3.23226736,3644.5,3643.8,2.74432532]
[1762743901237,2.74393654,3644.4,3643.7,2.74445833]
[1762743901409,0.4884,3644.5,3643.5,0.4678]
[1762743901743,0.4884,3644.5,3642.1,3.7129752]
[1762743901744,0.2918,3643.6,3642.6,0.4678]
[1762743901956,0.4884,3644.4,3642.6,0.4678]
[1762743902268,3.41270373,3644.8,3642.0,3.25990198]
[1762743902269,0.4884,3644.3,3642.0,3.25990198]
[1762743902544,2.74473709,3643.4,3642.4,3.21323086]
[1762743902720,2.74489999,3643.2,3642.4,0.4678]
[1762743902924,2.74477376,3643.3,3642.6,2.7452897]
[1762743903348,2.74484772,3643.2,3642.5,2.74536549]
[1762743903507,2.74484574,3643.2,3642.5,2.74536549]
[1762743903707,2.74484574,3643.2,3642.4,2.74541886]
[1762743903920,3.23318705,3643.3,3642.5,2.74535585]
[1762743904119,0.5977812,3643.2,3642.0,0.1957]
[1762743904451,0.669,3644.3,3642.0,0.1957]
[1762743904452,0.1948,3644.9,3643.2,0.6584]
[1762743904623,0.4884,3644.7,3643.3,1.28518214]
[1762743904827,0.4884,3644.7,3643.3,0.4614]
[1762743905027,2.74413852,3644.2,3643.1,0.197]
[1762743905222,2.74417347,3644.1,3643.2,1.259712]
[1762743905431,2.74387334,3644.5,3643.1,0.6648]
[1762743905719,0.4884,3644.6,3643.1,0.6648]
[1762743905720,0.1368,3644.0,3643.9,2.74431241]
[1762743905921,0.1368,3644.3,3643.7,0.1368]
[1762743906545,2.88083588,3644.3,3643.7,0.1368]
[1762743906952,0.1368,3644.3,3643.7,0.1368]
[1762743907160,0.1368,3644.3,3643.8,2.74434584]
[1762743907359,0.1368,3644.3,3643.9,2.74431241]
[1762743908043,0.1368,3644.3,3643.8,2.74438588]
[1762743908446,0.1368,3644.3,3643.7,0.1368]
[1762743908678,0.1368,3644.3,3643.8,2.74438644]
[1762743909048,0.1368,3644.3,3643.7,0.1368]
[1762743909049,0.1368,3644.3,3643.7,2.88125811]
[1762743909676,0.1368,3644.3,3643.7,0.1368]
[1762743909985,0.1368,3644.1,3643.4,0.1368]
[1762743910152,0.1948,3644.9,3643.8,2.74434118]
[1762743910153,2.74387643,3644.5,3643.8,2.74434118]
[1762743910354,0.1368,3644.2,3643.9,3.29319053]
[1762743910652,2.74378555,3644.6,3644.2,2.74408407]
[1762743910653,0.1368,3644.6,3644.2,2.74408407]
[1762743910845,0.1368,3644.6,3644.2,3.21186796]
[1762743911051,0.1368,3644.6,3644.2,0.4678]
[1762743911476,0.1368,3644.6,3644.3,2.74400279]
[1762743912086,0.1368,3644.6,3644.2,3.21185978]
[1762743912584,0.4884,3645.1,3644.3,0.4678]
[1762743912886,2.88042124,3644.9,3644.3,0.4678]
[1762743913059,0.1368,3644.9,3644.3,0.4678]
[1762743913264,2.88037396,3644.9,3644.3,3.21178378]
[1762743913464,2.88037396,3644.9,3644.3,0.4678]
[1762743913660,0.098,3644.4,3644.2,0.1368]
[1762743913878,0.0048,3644.3,3643.6,1.259712]
[1762743914391,0.0048,3644.3,3643.2,0.72630731]
[1762743914392,2.7441466,3644.2,3643.2,0.72630731]
[1762743914685,2.74883239,3644.3,3643.2,0.834626]
[1762743914850,2.74379902,3644.6,3643.4,2.74461657]
[1762743915050,2.74408398,3644.3,3643.4,1.259712]
[1762743915302,2.74353812,3645.0,3643.4,1.259712]
[1762743915303,0.4884,3645.6,3643.6,0.405504]
[1762743915459,0.74379134,3645.2,3643.7,0.72630731]
[1762743915651,2.74348422,3645.0,3643.7,1.259712]
[1762743915980,0.93861299,3644.9,3643.7,1.259712]
[1762743916282,2.74399034,3644.4,3643.7,1.259712]
[1762743916499,2.74387579,3644.5,3643.8,2.74438226]
[1762743916680,0.32322758,3644.5,3643.5,0.4678]
[1762743916888,0.1948,3644.9,3644.4,0.4614]
[1762743917196,0.1948,3644.9,3643.5,0.4678]
[1762743917197,0.1948,3645.7,3644.8,0.6584]
[1762743917406,0.74407314,3645.6,3644.8,3.20503092]
[1762743917565,0.25567314,3645.5,3644.9,2.74355803]
[1762743917766,0.25567314,3645.5,3644.8,0.4614]
[1762743917975,0.25567314,3645.5,3645.1,2.74334926]
[1762743918189,0.4884,3645.6,3644.8,3.20499171]
[1762743918387,0.0834,3644.9,3644.5,2.74383095]
[1762743918587,0.2771,3644.9,3644.1,0.6648]
[1762743918753,0.2771,3644.9,3644.2,2.883128]
[1762743918959,0.4854,3644.8,3643.9,0.72630731]
[1762743919154,0.4854,3644.8,3643.8,0.72630731]
[1762743919382,0.2560891,3644.7,3643.9,1.259712]
[1762743919559,2.99981799,3644.7,3644.0,2.74422069]
[1762743919755,0.4884,3644.6,3643.8,0.72630731]
[1762743920169,2.9373161,3644.9,3644.2,2.74407747]
[1762743920355,2.74383609,3644.6,3643.9,0.72630731]
[1762743920669,2.74371745,3644.7,3644.1,2.74412036]
[1762743920859,0.25625683,3644.6,3644.0,2.74422449]
[1762743921189,0.25630858,3644.5,3643.8,0.72630731]
[1762743921390,0.4884,3644.6,3644.0,2.74422995]
[1762743921691,0.25632626,3644.5,3643.8,3.47069073]
[1762743921891,0.25633891,3644.4,3643.7,3.47071615]
[1762743922097,0.4884,3644.4,3643.7,0.72630731]
[1762743922295,0.4884,3644.4,3643.8,0.72630731]
[1762743922498,0.4884,3644.4,3643.3,2.71712901]
[1762743922499,0.25640158,3644.3,3643.6,0.72630731]
[1762743922694,3.00050237,3644.2,3643.5,0.72630731]
[1762743922897,2.7442848,3644.0,3643.3,3.47104538]
[1762743923102,2.74476533,3643.3,3642.7,0.72630731]
[1762743923304,1.10771872,3643.9,3643.1,2.74491504]
[1762743923459,0.25641186,3643.8,3643.2,0.4614]
[1762743923664,0.25641186,3643.7,3643.2,0.4614]
[1762743923891,0.1368,3643.4,3643.2,0.4614]
[1762743924087,0.25641945,3643.3,3643.2,0.4614]
[1762743924403,0.25641945,3643.3,3642.8,0.6046]
[1762743924598,0.25641945,3643.2,3642.9,2.74499757]
[1762743924961,0.25641945,3643.1,3643.0,2.74499039]
[1762743925406,0.4591,3644.1,3643.4,2.74464158]
[1762743925604,0.1368,3643.9,3643.4,2.74464158]